Workbook

Sheet Лист 1
A2: Школа | E2: Отд./корп. | I2: День | J2: 2022-06-04
A4: Прием пищи | B4: Раздел | C4: № рец. | D4: Блюдо | E4: Выход, г | F4: Цена | G4: Калорийность | H4: Белки | I4: Жиры | J4: Углеводы
B5: Гарнир | C5: №510 | D5: Каша пшенная молочная гарнирная с маслом сливочным | E5: 150.00 | G5: 206.00 | H5: 6.30 | I5: 7.76 | J5: 27.93
B6: гор.напиток | C6: ТТК | D6: Чай с сахаром | E6: 200.00 | G6: 57.00 | H6: 0.20 | I6: 0.05 | J6: 15.01
B7: Батон | C7: ТТК | D7: Батон | E7: 30.00 | G7: 75.00 | H7: 2.16 | I7: 0.73 | J7: 14.43
B8: Десерт | C8: ТТК | D8: Десерт фруктовый (мандарины) | E8: 110.00 | G8: 41.80 | H8: 0.88 | I8: 0.22 | J8: 8.25
D9: ИТОГО | E9: =SUM(E5:E8) -> 490.00 | F9: 45.70 | G9: =SUM(G5:G8) -> 380 | H9: =SUM(H5:H8) -> 10 | I9: =SUM(I5:I8) -> 9 | J9: =SUM(J5:J8) -> 66
A12: Прием пищи | B12: Раздел | C12: № рец. | D12: Блюдо | E12: Выход, г | F12: Цена | G12: Калорийность | H12: Белки | I12: Жиры | J12: Углеводы
A13: Обед | B13: первое блюдо | C13: №124 | D13: Щи из свежей капусты с картофелем,со сметаной | E13: 250.00 | G13: 94.00 | H13: 1.85 | I13: 5.57 | J13: 8.03
B14: гарнир | C14: ТТК | D14: Плов из говядины | E14: 220.00 | G14: 381.00 | H14: 15.95 | I14: 14.96 | J14: 42.87
B15: гор.напиток | C15: ТТК | D15: Чай с сахаром с лимоном | E15: 200.00 | G15: 59.00 | H15: 0.26 | I15: 0.06 | J15: 15.22
B16: Батон | C16: ТТК | D16: Батон | E16: 32.00 | G16: 79.54 | H16: 2.30 | I16: 0.79 | J16: 15.40
D17: ИТОГО | E17: =SUM(E13:E16) -> 702.00 | F17: 84.84 | G17: =SUM(G13:G16) -> 614 | H17: =SUM(H13:H16) -> 20 | I17: =SUM(I13:I16) -> 21 | J17: =SUM(J13:J16) -> 82
A20: Прием пищи | B20: Раздел | C20: № рец. | D20: Блюдо | E20: Выход, г | F20: Цена | G20: Калорийность | H20: Белки | I20: Жиры | J20: Углеводы
A21: Полдник | B21: гор.напиток | C21: ТТК | D21: Напиток сокосодержащий в промышленной упаковке | E21: 200.00 | G21: 132.00 | H21: 0.60 | I21: 0.00 | J21: 34.00
B22: Мучное | C22: ТТК | D22: Кекс майский | E22: 50.00 | G22: 161.50 | H22: 3.28 | I22: 4.94 | J22: 25.80
D23: ИТОГО | E23: =SUM(E21:E22) -> 250.00 | F23: 23.05 | G23: =SUM(G21:G22) -> 294 | H23: =SUM(H21:H22) -> 4 | I23: =SUM(I21:I22) -> 5 | J23: =SUM(J21:J22) -> 60
E24: Всего по меню: | F24: =F23+F17+F9 -> 153.59 | G24: =G23+G17+G9 -> 1287 | H24: =H23+H17+H9 -> 34 | I24: =I23+I17+I9 -> 35 | J24: =J23+J17+J9 -> 207
